[Event "Titled Tuesday Blitz June 14 Late 2022"]
[White "Ansh M Shah"]
[Black "Chiu, Isaac"]
[WhiteFideId "25033379"]
[BlackFideId "30900654"]
[WhiteElo "1819"]
[BlackElo "2117"]
[Result "1/2-1/2"]
[Round "02"]
[TimeControl "180+1"]
[Date "2022.06.15"]
[WhiteClock "0:00:12"]
[BlackClock "0:00:16"]

1. d4 {[%clk 0:03:00]}  d5 {[%clk 0:02:56]} 2. c4 {[%clk 0:03:01]}  c6 {[%clk 0:02:55]} 3. cxd5 {[%clk 0:03:00]}  cxd5 {[%clk 0:02:55]} 4. Nc3 {[%clk 0:03:01]}  Nf6 {[%clk 0:02:55]} 5. Bf4 {[%clk 0:03:01]}  a6 {[%clk 0:02:54]} 6. Nf3 {[%clk 0:03:01]}  Nc6 {[%clk 0:02:53]} 7. e3 {[%clk 0:03:02]}  Bg4 {[%clk 0:02:54]} 8. Rc1 {[%clk 0:03:02]}  e6 {[%clk 0:02:53]} 9. Qb3 {[%clk 0:03:03]}  Bb4 {[%clk 0:02:37]} 10. Ne5 {[%clk 0:03:00]}  Qa5 {[%clk 0:02:29]} 11. Nxc6 {[%clk 0:02:55]}  bxc6 {[%clk 0:02:28]} 12. a3 {[%clk 0:02:56]}  Bxc3+ {[%clk 0:02:26]} 13. Qxc3 {[%clk 0:02:57]}  Qxc3+ {[%clk 0:02:25]} 14. Rxc3 {[%clk 0:02:58]}  Kd7 {[%clk 0:02:21]} 15. Bd3 {[%clk 0:02:51]}  Bf5 {[%clk 0:02:20]} 16. Be2 {[%clk 0:02:29]}  Ne4 {[%clk 0:02:16]} 17. Rc1 {[%clk 0:02:29]}  g5 {[%clk 0:02:16]} 18. Bg3 {[%clk 0:02:24]}  Nxg3 {[%clk 0:02:15]} 19. hxg3 {[%clk 0:02:24]}  a5 {[%clk 0:02:13]} 20. Kd2 {[%clk 0:02:18]}  Rab8 {[%clk 0:02:11]} 21. Kc3 {[%clk 0:02:13]}  Rb6 {[%clk 0:02:10]} 22. b4 {[%clk 0:01:55]}  Rhb8 {[%clk 0:02:06]} 23. Bd3 {[%clk 0:01:43]}  axb4+ {[%clk 0:01:57]} 24. axb4 {[%clk 0:01:42]}  Bxd3 {[%clk 0:01:57]} 25. Kxd3 {[%clk 0:01:43]}  Rxb4 {[%clk 0:01:54]} 26. Rxh7 {[%clk 0:01:42]}  Rb3+ {[%clk 0:01:49]} 27. Kd2 {[%clk 0:01:37]}  Rb2+ {[%clk 0:01:48]} 28. Rc2 {[%clk 0:01:37]}  Ke7 {[%clk 0:01:46]} 29. g4 {[%clk 0:01:31]}  Rxc2+ {[%clk 0:01:44]} 30. Kxc2 {[%clk 0:01:32]}  c5 {[%clk 0:01:44]} 31. dxc5 {[%clk 0:01:32]}  Rc8 {[%clk 0:01:44]} 32. Kd3 {[%clk 0:01:28]}  Rxc5 {[%clk 0:01:45]} 33. Rh5 {[%clk 0:01:21]}  Kf6 {[%clk 0:01:43]} 34. Rh6+ {[%clk 0:01:21]}  Kg7 {[%clk 0:01:43]} 35. Rh1 {[%clk 0:01:22]}  Rc4 {[%clk 0:01:42]} 36. f3 {[%clk 0:01:15]}  Ra4 {[%clk 0:01:42]} 37. g3 {[%clk 0:01:09]}  Ra2 {[%clk 0:01:40]} 38. f4 {[%clk 0:01:08]}  Rg2 {[%clk 0:01:35]} 39. Rh3 {[%clk 0:01:00]}  Kg6 {[%clk 0:01:28]} 40. e4 {[%clk 0:00:54]}  Kf6 {[%clk 0:01:09]} 41. exd5 {[%clk 0:00:46]}  exd5 {[%clk 0:01:10]} 42. Ke3 {[%clk 0:00:38]}  gxf4+ {[%clk 0:00:35]} 43. Kxf4 {[%clk 0:00:38]}  Re2 {[%clk 0:00:32]} 44. g5+ {[%clk 0:00:35]}  Kg7 {[%clk 0:00:30]} 45. Rh1 {[%clk 0:00:31]}  Re4+ {[%clk 0:00:26]} 46. Kf5 {[%clk 0:00:30]}  Rd4 {[%clk 0:00:24]} 47. Ra1 {[%clk 0:00:20]}  Rd2 {[%clk 0:00:24]} 48. Ra7 {[%clk 0:00:20]}  d4 {[%clk 0:00:17]} 49. Rd7 {[%clk 0:00:12]}  d3 {[%clk 0:00:17]} 50. Ke4 {[%clk 0:00:11]}  Kg6 {[%clk 0:00:15]} 51. Rxd3 {[%clk 0:00:09]}  Rxd3 {[%clk 0:00:14]} 52. Kxd3 {[%clk 0:00:10]}  Kxg5 {[%clk 0:00:15]} 53. Ke3 {[%clk 0:00:11]}  Kg4 {[%clk 0:00:15]} 54. Kf2 {[%clk 0:00:11]}  f5 {[%clk 0:00:15]} 55. Kg2 {[%clk 0:00:12]}  f4 {[%clk 0:00:15]} 56. gxf4 {[%clk 0:00:12]}  Kxf4 {[%clk 0:00:16]} 1/2-1/2


[Site "https://www.chess.com"]

[Event "Titled Tuesday Blitz June 14 Late 2022"]
[White "Araujo Sanchez, Josue"]
[Black "Pace, Christopher"]
[WhiteFideId "6416896"]
[BlackFideId "2610167"]
[WhiteElo "2339"]
[BlackElo "2395"]
[Result "1-0"]
[Round "02"]
[TimeControl "180+1"]
[Date "2022.06.15"]
[WhiteClock "0:00:05"]
[BlackClock "0:00:12"]

1. e4 {[%clk 0:03:00]}  e5 {[%clk 0:02:52]} 2. Nf3 {[%clk 0:02:31]}  Nc6 {[%clk 0:02:51]} 3. Bb5 {[%clk 0:02:26]}  a6 {[%clk 0:02:47]} 4. Ba4 {[%clk 0:02:23]}  Nf6 {[%clk 0:02:46]} 5. Qe2 {[%clk 0:02:23]}  b5 {[%clk 0:02:43]} 6. Bb3 {[%clk 0:02:23]}  Be7 {[%clk 0:02:42]} 7. O-O {[%clk 0:02:22]}  O-O {[%clk 0:02:42]} 8. c3 {[%clk 0:02:22]}  d6 {[%clk 0:02:40]} 9. h3 {[%clk 0:02:21]}  Na5 {[%clk 0:02:40]} 10. Bc2 {[%clk 0:02:20]}  c5 {[%clk 0:02:41]} 11. Rd1 {[%clk 0:02:21]}  Qc7 {[%clk 0:02:38]} 12. d4 {[%clk 0:02:22]}  cxd4 {[%clk 0:02:37]} 13. cxd4 {[%clk 0:02:22]}  Nc6 {[%clk 0:02:37]} 14. d5 {[%clk 0:02:05]}  Nb4 {[%clk 0:02:18]} 15. Bb3 {[%clk 0:02:03]}  a5 {[%clk 0:02:19]} 16. a3 {[%clk 0:02:03]}  Na6 {[%clk 0:02:18]} 17. Nc3 {[%clk 0:01:53]}  Nc5 {[%clk 0:02:12]} 18. Nxb5 {[%clk 0:01:52]}  Qb8 {[%clk 0:02:11]} 19. Bc2 {[%clk 0:01:51]}  Ncxe4 {[%clk 0:02:01]} 20. a4 {[%clk 0:01:43]}  Nc5 {[%clk 0:01:58]} 21. Be3 {[%clk 0:01:42]}  Nfd7 {[%clk 0:01:38]} 22. Ng5 {[%clk 0:01:27]}  h6 {[%clk 0:01:09]} 23. h4 {[%clk 0:01:23]}  hxg5 {[%clk 0:00:49]} 24. hxg5 {[%clk 0:01:22]}  g6 {[%clk 0:00:49]} 25. Ra3 {[%clk 0:01:01]}  Kg7 {[%clk 0:00:49]} 26. f4 {[%clk 0:00:59]}  Qb6 {[%clk 0:00:28]} 27. Bf2 {[%clk 0:00:46]}  Re8 {[%clk 0:00:24]} 28. Rh3 {[%clk 0:00:39]}  exf4 {[%clk 0:00:21]} 29. Bd4+ {[%clk 0:00:33]}  Ne5 {[%clk 0:00:21]} 30. Bxe5+ {[%clk 0:00:26]}  dxe5 {[%clk 0:00:22]} 31. Qxe5+ {[%clk 0:00:14]}  f6 {[%clk 0:00:22]} 32. gxf6+ {[%clk 0:00:14]}  Qxf6 {[%clk 0:00:20]} 33. Qxf6+ {[%clk 0:00:12]}  Bxf6 {[%clk 0:00:20]} 34. Rf3 {[%clk 0:00:11]}  Bg4 {[%clk 0:00:19]} 35. Nc7 {[%clk 0:00:11]}  Bxf3 {[%clk 0:00:20]} 36. Nxe8+ {[%clk 0:00:11]}  Rxe8 {[%clk 0:00:19]} 37. gxf3 {[%clk 0:00:12]}  Bxb2 {[%clk 0:00:19]} 38. d6 {[%clk 0:00:12]}  Re2 {[%clk 0:00:17]} 39. d7 {[%clk 0:00:11]}  Nxd7 {[%clk 0:00:17]} 40. Rxd7+ {[%clk 0:00:11]}  Kh6 {[%clk 0:00:17]} 41. Be4 {[%clk 0:00:11]}  Ba3 {[%clk 0:00:13]} 42. Rc7 {[%clk 0:00:09]}  Bd6 {[%clk 0:00:12]} 43. Rc6 {[%clk 0:00:09]}  Rd2 {[%clk 0:00:13]} 44. Ra6 {[%clk 0:00:08]}  Rd4 {[%clk 0:00:11]} 45. Rxa5 {[%clk 0:00:07]}  g5 {[%clk 0:00:10]} 46. Bf5 {[%clk 0:00:07]}  Kh5 {[%clk 0:00:10]} 47. Bg4+ {[%clk 0:00:06]}  Kh4 {[%clk 0:00:10]} 48. Ra8 {[%clk 0:00:06]}  Kg3 {[%clk 0:00:09]} 49. Kf1 {[%clk 0:00:06]}  Bb4 {[%clk 0:00:08]} 50. Rh8 {[%clk 0:00:04]}  Rd1+ {[%clk 0:00:07]} 51. Ke2 {[%clk 0:00:04]}  Rd2+ {[%clk 0:00:08]} 52. Kf1 {[%clk 0:00:03]}  Rd1+ {[%clk 0:00:09]} 53. Ke2 {[%clk 0:00:04]}  Rd2+ {[%clk 0:00:09]} 54. Kf1 {[%clk 0:00:04]}  Rf2+ {[%clk 0:00:09]} 55. Kg1 {[%clk 0:00:04]}  Rxf3 {[%clk 0:00:09]} 56. Bxf3 {[%clk 0:00:04]}  Kxf3 {[%clk 0:00:09]} 57. Rb8 {[%clk 0:00:04]}  Bc5+ {[%clk 0:00:09]} 58. Kf1 {[%clk 0:00:04]}  g4 {[%clk 0:00:10]} 59. Rb3+ {[%clk 0:00:04]}  Be3 {[%clk 0:00:11]} 60. a5 {[%clk 0:00:04]}  g3 {[%clk 0:00:12]} 61. Rb2 {[%clk 0:00:04]}  Bf2 {[%clk 0:00:12]} 62. Rxf2+ {[%clk 0:00:03]}  gxf2 {[%clk 0:00:13]} 63. a6 {[%clk 0:00:04]}  Ke3 {[%clk 0:00:12]} 64. a7 {[%clk 0:00:05]} 1-0


[Site "https://www.chess.com"]

[Event "Titled Tuesday Blitz June 14 Late 2022"]
[White "Donskov, Anatoly"]
[Black "Rychkov, Roman"]
[WhiteFideId "24143413"]
[BlackFideId "30985595"]
[WhiteElo "2219"]
[BlackElo "2336"]
[Result "1-0"]
[Round "02"]
[TimeControl "180+1"]
[Date "2022.06.15"]
[WhiteClock "0:00:08"]
[BlackClock "0:00:03"]

1. e4 {[%clk 0:03:00]}  e5 {[%clk 0:03:00]} 2. Nf3 {[%clk 0:03:00]}  Nc6 {[%clk 0:03:01]} 3. Bb5 {[%clk 0:02:59]}  a6 {[%clk 0:03:01]} 4. Ba4 {[%clk 0:02:59]}  Nf6 {[%clk 0:03:01]} 5. d3 {[%clk 0:02:58]}  b5 {[%clk 0:03:02]} 6. Bb3 {[%clk 0:02:58]}  Bc5 {[%clk 0:03:03]} 7. O-O {[%clk 0:02:57]}  d6 {[%clk 0:03:04]} 8. Be3 {[%clk 0:02:57]}  Nd4 {[%clk 0:02:55]} 9. c3 {[%clk 0:02:56]}  Nxb3 {[%clk 0:02:54]} 10. axb3 {[%clk 0:02:57]}  Qe7 {[%clk 0:02:44]} 11. b4 {[%clk 0:02:56]}  Bxe3 {[%clk 0:02:39]} 12. fxe3 {[%clk 0:02:56]}  O-O {[%clk 0:02:36]} 13. Nbd2 {[%clk 0:02:56]}  Rd8 {[%clk 0:02:26]} 14. Qe2 {[%clk 0:02:50]}  Bb7 {[%clk 0:02:17]} 15. Nh4 {[%clk 0:02:49]}  g6 {[%clk 0:02:17]} 16. Nhf3 {[%clk 0:02:45]}  c5 {[%clk 0:02:06]} 17. h3 {[%clk 0:02:39]}  cxb4 {[%clk 0:01:54]} 18. cxb4 {[%clk 0:02:40]}  Rac8 {[%clk 0:01:54]} 19. Rac1 {[%clk 0:02:39]}  Nh5 {[%clk 0:01:52]} 20. Kh2 {[%clk 0:02:38]}  Nf6 {[%clk 0:01:34]} 21. Nb3 {[%clk 0:02:34]}  d5 {[%clk 0:01:14]} 22. Rxc8 {[%clk 0:02:20]}  Rxc8 {[%clk 0:01:12]} 23. Nc5 {[%clk 0:02:21]}  dxe4 {[%clk 0:01:10]} 24. dxe4 {[%clk 0:02:20]}  Nxe4 {[%clk 0:01:08]} 25. Nd3 {[%clk 0:02:14]}  Ng3 {[%clk 0:00:59]} 26. Kxg3 {[%clk 0:02:11]}  e4 {[%clk 0:01:00]} 27. Nf4 {[%clk 0:02:10]}  exf3 {[%clk 0:00:57]} 28. gxf3 {[%clk 0:02:08]}  Qxb4 {[%clk 0:00:49]} 29. Rd1 {[%clk 0:02:06]}  g5 {[%clk 0:00:41]} 30. Ng2 {[%clk 0:02:04]}  Qc5 {[%clk 0:00:34]} 31. Rd4 {[%clk 0:02:03]}  Qc2 {[%clk 0:00:30]} 32. Rd2 {[%clk 0:02:03]}  Qc7+ {[%clk 0:00:29]} 33. Kf2 {[%clk 0:02:03]}  Qh2 {[%clk 0:00:29]} 34. Rd4 {[%clk 0:01:19]}  Qxh3 {[%clk 0:00:21]} 35. Rg4 {[%clk 0:01:19]}  h6 {[%clk 0:00:17]} 36. e4 {[%clk 0:01:10]}  Qh2 {[%clk 0:00:17]} 37. Qd2 {[%clk 0:01:06]}  Qe5 {[%clk 0:00:15]} 38. Ne3 {[%clk 0:01:04]}  Qh2+ {[%clk 0:00:14]} 39. Rg2 {[%clk 0:01:03]}  Qc7 {[%clk 0:00:12]} 40. Kg1 {[%clk 0:00:42]}  Rd8 {[%clk 0:00:12]} 41. Qe1 {[%clk 0:00:38]}  Qc5 {[%clk 0:00:12]} 42. Kh2 {[%clk 0:00:37]}  Rd3 {[%clk 0:00:12]} 43. Nf5 {[%clk 0:00:32]}  Qe5+ {[%clk 0:00:12]} 44. Kg1 {[%clk 0:00:23]}  Rxf3 {[%clk 0:00:13]} 45. Nxh6+ {[%clk 0:00:22]}  Kh7 {[%clk 0:00:13]} 46. Ng4 {[%clk 0:00:20]}  Qd4+ {[%clk 0:00:12]} 47. Kh2 {[%clk 0:00:19]}  Bxe4 {[%clk 0:00:08]} 48. Rg3 {[%clk 0:00:12]}  Rxg3 {[%clk 0:00:06]} 49. Qxg3 {[%clk 0:00:13]}  Qxb2+ {[%clk 0:00:07]} 50. Nf2 {[%clk 0:00:13]}  Qf6 {[%clk 0:00:05]} 51. Nxe4 {[%clk 0:00:11]}  Qb2+ {[%clk 0:00:04]} 52. Kh3 {[%clk 0:00:11]}  f6 {[%clk 0:00:02]} 53. Nf2 {[%clk 0:00:09]}  Qe5 {[%clk 0:00:02]} 54. Qd3+ {[%clk 0:00:08]}  Kh6 {[%clk 0:00:02]} 55. Ng4+ {[%clk 0:00:07]}  Kh5 {[%clk 0:00:03]} 56. Nxe5 {[%clk 0:00:07]}  fxe5 {[%clk 0:00:03]} 57. Qh7# {[%clk 0:00:08]} 1-0


[Site "https://www.chess.com"]

[Event "Titled Tuesday Blitz June 14 Late 2022"]
[White "Fedoseev, Vladimir"]
[Black "Dardha, Daniel"]
[WhiteFideId "24130737"]
[BlackFideId "240990"]
[WhiteElo "2726"]
[BlackElo "2482"]
[Result "0-1"]
[Round "02"]
[TimeControl "180+1"]
[Date "2022.06.14"]
[WhiteClock "0:00:01"]
[BlackClock "0:00:57"]

1. e4 {[%clk 0:01:25]}  e5 {[%clk 0:02:56]} 2. Nf3 {[%clk 0:01:24]}  Nc6 {[%clk 0:02:54]} 3. Bb5 {[%clk 0:01:24]}  a6 {[%clk 0:02:53]} 4. Bxc6 {[%clk 0:01:24]}  dxc6 {[%clk 0:02:52]} 5. O-O {[%clk 0:01:25]}  Qf6 {[%clk 0:02:49]} 6. d4 {[%clk 0:01:24]}  exd4 {[%clk 0:02:47]} 7. Bg5 {[%clk 0:01:24]}  Qd6 {[%clk 0:02:42]} 8. Nxd4 {[%clk 0:01:24]}  Be7 {[%clk 0:02:40]} 9. Be3 {[%clk 0:01:23]}  Nh6 {[%clk 0:02:38]} 10. f3 {[%clk 0:01:20]}  Bd7 {[%clk 0:02:34]} 11. Nd2 {[%clk 0:01:18]}  O-O-O {[%clk 0:02:31]} 12. Qe2 {[%clk 0:01:18]}  f5 {[%clk 0:02:20]} 13. Nc4 {[%clk 0:01:17]}  Qg6 {[%clk 0:02:16]} 14. Bxh6 {[%clk 0:00:54]}  Qxh6 {[%clk 0:02:11]} 15. Nxf5 {[%clk 0:00:39]}  Bxf5 {[%clk 0:02:03]} 16. exf5 {[%clk 0:00:39]}  Rhe8 {[%clk 0:02:02]} 17. Qf2 {[%clk 0:00:23]}  Qf4 {[%clk 0:01:58]} 18. b3 {[%clk 0:00:20]}  Bf6 {[%clk 0:01:55]} 19. g3 {[%clk 0:00:16]}  Qd4 {[%clk 0:01:49]} 20. Rae1 {[%clk 0:00:15]}  b5 {[%clk 0:01:34]} 21. Rxe8 {[%clk 0:00:11]}  Rxe8 {[%clk 0:01:33]} 22. Nd2 {[%clk 0:00:07]}  Re2 {[%clk 0:01:27]} 23. Ne4 {[%clk 0:00:03]}  Rxf2 {[%clk 0:01:24]} 24. Rxf2 {[%clk 0:00:04]}  Qa1+ {[%clk 0:01:16]} 25. Kg2 {[%clk 0:00:03]}  Qxa2 {[%clk 0:01:15]} 26. Re2 {[%clk 0:00:03]}  a5 {[%clk 0:01:12]} 27. Nc5 {[%clk 0:00:03]}  Kb8 {[%clk 0:01:05]} 28. g4 {[%clk 0:00:03]}  a4 {[%clk 0:01:02]} 29. h4 {[%clk 0:00:02]}  a3 {[%clk 0:00:59]} 30. g5 {[%clk 0:00:02]}  Qb1 {[%clk 0:00:56]} 31. gxf6 {[%clk 0:00:01]}  gxf6 {[%clk 0:00:57]} 0-1


[Site "https://www.chess.com"]

[Event "Titled Tuesday Blitz June 14 Late 2022"]
[White "Goldovsky, Roman"]
[Black "Malka, Samuel"]
[WhiteFideId "30964105"]
[BlackFideId "20643675"]
[WhiteElo "2224"]
[BlackElo "2473"]
[Result "0-1"]
[Round "02"]
[TimeControl "180+1"]
[Date "2022.06.15"]
[WhiteClock "0:00:29"]
[BlackClock "0:00:06"]

1. e4 {[%clk 0:02:39]}  e5 {[%clk 0:02:56]} 2. Nf3 {[%clk 0:02:39]}  Nc6 {[%clk 0:02:56]} 3. d4 {[%clk 0:02:40]}  exd4 {[%clk 0:02:56]} 4. Bc4 {[%clk 0:02:41]}  Nf6 {[%clk 0:02:56]} 5. e5 {[%clk 0:02:41]}  Ne4 {[%clk 0:02:56]} 6. O-O {[%clk 0:02:39]}  d5 {[%clk 0:02:46]} 7. Bb5 {[%clk 0:02:37]}  Bc5 {[%clk 0:02:29]} 8. Bxc6+ {[%clk 0:02:33]}  bxc6 {[%clk 0:02:23]} 9. Nxd4 {[%clk 0:02:33]}  Ba6 {[%clk 0:01:52]} 10. Re1 {[%clk 0:02:23]}  Nxf2 {[%clk 0:01:27]} 11. Qd2 {[%clk 0:01:37]}  Ne4 {[%clk 0:01:20]} 12. Qe3 {[%clk 0:01:33]}  O-O {[%clk 0:01:15]} 13. Nd2 {[%clk 0:01:29]}  f6 {[%clk 0:00:48]} 14. exf6 {[%clk 0:01:22]}  Qxf6 {[%clk 0:00:47]} 15. c3 {[%clk 0:01:18]}  Rae8 {[%clk 0:00:45]} 16. N2f3 {[%clk 0:01:07]}  Bb6 {[%clk 0:00:40]} 17. Bd2 {[%clk 0:01:02]}  Nd6 {[%clk 0:00:38]} 18. Qg5 {[%clk 0:01:01]}  Ne4 {[%clk 0:00:34]} 19. Qxf6 {[%clk 0:01:00]}  Rxf6 {[%clk 0:00:35]} 20. Bg5 {[%clk 0:00:56]}  Rg6 {[%clk 0:00:33]} 21. Bh4 {[%clk 0:00:54]}  Rf8 {[%clk 0:00:32]} 22. Kh1 {[%clk 0:00:52]}  Rg4 {[%clk 0:00:28]} 23. Be7 {[%clk 0:00:51]}  Re8 {[%clk 0:00:27]} 24. Nf5 {[%clk 0:00:45]}  Bd3 {[%clk 0:00:23]} 25. h3 {[%clk 0:00:40]}  Nf2+ {[%clk 0:00:20]} 26. Kh2 {[%clk 0:00:39]}  Rf4 {[%clk 0:00:19]} 27. N3d4 {[%clk 0:00:24]}  Ne4 {[%clk 0:00:18]} 28. Ba3 {[%clk 0:00:23]}  g6 {[%clk 0:00:17]} 29. Ng3 {[%clk 0:00:22]}  Bxd4 {[%clk 0:00:17]} 30. cxd4 {[%clk 0:00:22]}  Rf2 {[%clk 0:00:15]} 31. Nxe4 {[%clk 0:00:22]}  Bxe4 {[%clk 0:00:16]} 32. Rg1 {[%clk 0:00:20]}  Ref8 {[%clk 0:00:14]} 33. Bxf8 {[%clk 0:00:20]}  Kxf8 {[%clk 0:00:14]} 34. Raf1 {[%clk 0:00:21]}  Rxf1 {[%clk 0:00:14]} 35. Rxf1+ {[%clk 0:00:22]}  Ke7 {[%clk 0:00:15]} 36. Kg3 {[%clk 0:00:23]}  Kd6 {[%clk 0:00:15]} 37. Rc1 {[%clk 0:00:23]}  h6 {[%clk 0:00:13]} 38. Kf2 {[%clk 0:00:24]}  g5 {[%clk 0:00:13]} 39. g4 {[%clk 0:00:25]}  a6 {[%clk 0:00:13]} 40. Kg3 {[%clk 0:00:25]}  Bd3 {[%clk 0:00:12]} 41. b4 {[%clk 0:00:25]}  Bc4 {[%clk 0:00:13]} 42. a3 {[%clk 0:00:26]}  Bd3 {[%clk 0:00:13]} 43. h4 {[%clk 0:00:27]}  Be4 {[%clk 0:00:13]} 44. hxg5 {[%clk 0:00:27]}  hxg5 {[%clk 0:00:14]} 45. Rf1 {[%clk 0:00:26]}  Ke6 {[%clk 0:00:14]} 46. Rf8 {[%clk 0:00:27]}  Kd7 {[%clk 0:00:14]} 47. Rg8 {[%clk 0:00:27]}  c5 {[%clk 0:00:13]} 48. dxc5 {[%clk 0:00:27]}  d4 {[%clk 0:00:11]} 49. Rxg5 {[%clk 0:00:27]}  d3 {[%clk 0:00:12]} 50. Re5 {[%clk 0:00:27]}  d2 {[%clk 0:00:12]} 51. Rxe4 {[%clk 0:00:28]}  d1=Q {[%clk 0:00:12]} 52. Rf4 {[%clk 0:00:28]}  Qd3+ {[%clk 0:00:11]} 53. Rf3 {[%clk 0:00:29]}  Qg6 {[%clk 0:00:12]} 54. Kf4 {[%clk 0:00:29]}  Qf6+ {[%clk 0:00:12]} 55. Kg3 {[%clk 0:00:29]}  Qe5+ {[%clk 0:00:12]} 56. Kh4 {[%clk 0:00:29]}  Qh8+ {[%clk 0:00:12]} 57. Kg3 {[%clk 0:00:29]}  Qe5+ {[%clk 0:00:12]} 58. Kg2 {[%clk 0:00:29]}  a5 {[%clk 0:00:12]} 59. bxa5 {[%clk 0:00:28]}  Qxc5 {[%clk 0:00:11]} 60. Rf5 {[%clk 0:00:26]}  Qc2+ {[%clk 0:00:10]} 61. Kg3 {[%clk 0:00:27]}  Qb3+ {[%clk 0:00:10]} 62. Rf3 {[%clk 0:00:27]}  Qa4 {[%clk 0:00:09]} 63. g5 {[%clk 0:00:27]}  Qxa5 {[%clk 0:00:09]} 64. Kg4 {[%clk 0:00:27]}  Qa4+ {[%clk 0:00:09]} 65. Rf4 {[%clk 0:00:28]}  Qd1+ {[%clk 0:00:09]} 66. Kf5 {[%clk 0:00:27]}  Qd5+ {[%clk 0:00:09]} 67. Kg4 {[%clk 0:00:28]}  Qe6+ {[%clk 0:00:10]} 68. Kh5 {[%clk 0:00:27]}  Qe2+ {[%clk 0:00:10]} 69. Kh6 {[%clk 0:00:27]}  Qh2+ {[%clk 0:00:09]} 70. Kg7 {[%clk 0:00:27]}  Qxf4 {[%clk 0:00:10]} 71. g6 {[%clk 0:00:28]}  Ke6 {[%clk 0:00:08]} 72. Kh7 {[%clk 0:00:28]}  Kf6 {[%clk 0:00:06]} 73. g7 {[%clk 0:00:29]}  Qh4+ {[%clk 0:00:05]} 74. Kg8 {[%clk 0:00:29]}  Qg5 {[%clk 0:00:05]} 75. Kf8 {[%clk 0:00:28]}  Qxg7+ {[%clk 0:00:06]} 76. Ke8 {[%clk 0:00:29]}  Qe7# {[%clk 0:00:06]} 0-1


[Site "https://www.chess.com"]

[Event "Titled Tuesday Blitz June 14 Late 2022"]
[White "Hjartarson, Johann"]
[Black "Andreikin, Dmitry"]
[WhiteFideId "2300044"]
[BlackFideId "4158814"]
[WhiteElo "2458"]
[BlackElo "2736"]
[Result "0-1"]
[Round "02"]
[TimeControl "180+1"]
[Date "2022.06.14"]
[WhiteClock "0:00:04"]
[BlackClock "0:00:21"]

1. e4 {[%clk 0:03:00]}  c5 {[%clk 0:02:59]} 2. Nf3 {[%clk 0:03:00]}  e6 {[%clk 0:02:59]} 3. d4 {[%clk 0:03:00]}  cxd4 {[%clk 0:03:00]} 4. Nxd4 {[%clk 0:03:00]}  Nc6 {[%clk 0:03:01]} 5. Nc3 {[%clk 0:03:00]}  a6 {[%clk 0:03:01]} 6. g3 {[%clk 0:03:00]}  Qc7 {[%clk 0:03:00]} 7. Bg2 {[%clk 0:03:00]}  Nf6 {[%clk 0:03:01]} 8. O-O {[%clk 0:03:00]}  Nxd4 {[%clk 0:03:01]} 9. Qxd4 {[%clk 0:02:59]}  Bc5 {[%clk 0:03:01]} 10. Bf4 {[%clk 0:02:56]}  d6 {[%clk 0:03:01]} 11. Qd2 {[%clk 0:02:55]}  h6 {[%clk 0:03:02]} 12. Rad1 {[%clk 0:02:51]}  e5 {[%clk 0:03:02]} 13. Be3 {[%clk 0:02:51]}  Bxe3 {[%clk 0:03:02]} 14. Qxe3 {[%clk 0:02:50]}  Be6 {[%clk 0:03:02]} 15. Rd2 {[%clk 0:02:49]}  O-O {[%clk 0:03:00]} 16. Rfd1 {[%clk 0:02:48]}  Rfd8 {[%clk 0:03:00]} 17. h3 {[%clk 0:02:47]}  b5 {[%clk 0:02:57]} 18. a3 {[%clk 0:02:46]}  Rac8 {[%clk 0:02:35]} 19. f4 {[%clk 0:02:43]}  Kf8 {[%clk 0:02:34]} 20. Kh2 {[%clk 0:02:33]}  Bc4 {[%clk 0:02:33]} 21. Bf3 {[%clk 0:02:31]}  Ke7 {[%clk 0:02:26]} 22. Kg2 {[%clk 0:02:27]}  Qc5 {[%clk 0:02:22]} 23. Qxc5 {[%clk 0:02:21]}  Rxc5 {[%clk 0:02:17]} 24. Kf2 {[%clk 0:02:11]}  Be6 {[%clk 0:02:03]} 25. h4 {[%clk 0:02:00]}  g5 {[%clk 0:01:59]} 26. hxg5 {[%clk 0:01:54]}  hxg5 {[%clk 0:01:59]} 27. fxe5 {[%clk 0:01:43]}  Rxe5 {[%clk 0:01:58]} 28. Rh1 {[%clk 0:01:40]}  Rc8 {[%clk 0:01:50]} 29. Rd4 {[%clk 0:01:37]}  Rec5 {[%clk 0:01:44]} 30. Rhd1 {[%clk 0:01:32]}  R8c6 {[%clk 0:01:44]} 31. R4d2 {[%clk 0:01:15]}  Re5 {[%clk 0:01:40]} 32. Rd4 {[%clk 0:01:09]}  Nd7 {[%clk 0:01:36]} 33. R1d2 {[%clk 0:01:04]}  Rec5 {[%clk 0:01:29]} 34. Nd5+ {[%clk 0:00:58]}  Bxd5 {[%clk 0:01:27]} 35. exd5 {[%clk 0:00:57]}  Rc7 {[%clk 0:01:26]} 36. c3 {[%clk 0:00:57]}  Ne5 {[%clk 0:01:26]} 37. Be2 {[%clk 0:00:55]}  f5 {[%clk 0:01:24]} 38. a4 {[%clk 0:00:54]}  Kf6 {[%clk 0:01:23]} 39. axb5 {[%clk 0:00:54]}  axb5 {[%clk 0:01:24]} 40. Rb4 {[%clk 0:00:54]}  Rh7 {[%clk 0:01:12]} 41. Kg2 {[%clk 0:00:52]}  Rc8 {[%clk 0:01:03]} 42. Rxb5 {[%clk 0:00:48]}  Rch8 {[%clk 0:01:03]} 43. Rb6 {[%clk 0:00:39]}  Rh2+ {[%clk 0:00:57]} 44. Kg1 {[%clk 0:00:37]}  Nc4 {[%clk 0:00:28]} 45. Bxc4 {[%clk 0:00:28]}  Rxd2 {[%clk 0:00:29]} 46. Rxd6+ {[%clk 0:00:28]}  Kg7 {[%clk 0:00:29]} 47. Rd7+ {[%clk 0:00:21]}  Kg6 {[%clk 0:00:30]} 48. b4 {[%clk 0:00:19]}  Rh3 {[%clk 0:00:26]} 49. Rd6+ {[%clk 0:00:11]}  Kh5 {[%clk 0:00:25]} 50. b5 {[%clk 0:00:07]}  Rxg3+ {[%clk 0:00:25]} 51. Kf1 {[%clk 0:00:07]}  Rxc3 {[%clk 0:00:24]} 52. Be2+ {[%clk 0:00:07]}  g4 {[%clk 0:00:25]} 53. b6 {[%clk 0:00:07]}  Rc1+ {[%clk 0:00:22]} 54. Kf2 {[%clk 0:00:06]}  Rcc2 {[%clk 0:00:23]} 55. Re6 {[%clk 0:00:06]}  Rb2 {[%clk 0:00:21]} 56. Ke1 {[%clk 0:00:04]}  Rxd5 {[%clk 0:00:21]} 0-1


[Site "https://www.chess.com"]

[Event "Titled Tuesday Blitz June 14 Late 2022"]
[White "Kamsky, Gata"]
[Black "Janaszak, Dawid"]
[WhiteFideId "2000024"]
[BlackFideId "1119206"]
[WhiteElo "2645"]
[BlackElo "2199"]
[Result "1-0"]
[Round "02"]
[TimeControl "180+1"]
[Date "2022.06.14"]
[WhiteClock "0:00:43"]
[BlackClock "0:00:10"]

1. e4 {[%clk 0:03:00]}  c5 {[%clk 0:02:55]} 2. Nf3 {[%clk 0:02:55]}  Nc6 {[%clk 0:02:50]} 3. d4 {[%clk 0:02:53]}  cxd4 {[%clk 0:02:51]} 4. Nxd4 {[%clk 0:02:53]}  g6 {[%clk 0:02:50]} 5. c4 {[%clk 0:02:52]}  Bg7 {[%clk 0:02:45]} 6. Be3 {[%clk 0:02:52]}  Qb6 {[%clk 0:02:45]} 7. Nb3 {[%clk 0:02:48]}  Qd8 {[%clk 0:02:44]} 8. Nc3 {[%clk 0:02:47]}  Bxc3+ {[%clk 0:02:44]} 9. bxc3 {[%clk 0:02:46]}  Nf6 {[%clk 0:02:41]} 10. f3 {[%clk 0:02:45]}  d6 {[%clk 0:02:37]} 11. Be2 {[%clk 0:02:37]}  b6 {[%clk 0:02:36]} 12. O-O {[%clk 0:02:36]}  Ba6 {[%clk 0:02:33]} 13. Bh6 {[%clk 0:02:34]}  Rg8 {[%clk 0:02:25]} 14. Bg5 {[%clk 0:02:32]}  Nd7 {[%clk 0:02:18]} 15. Nd4 {[%clk 0:02:31]}  Nce5 {[%clk 0:02:17]} 16. Qa4 {[%clk 0:02:28]}  Qc8 {[%clk 0:02:11]} 17. Nb5 {[%clk 0:02:20]}  Bb7 {[%clk 0:01:46]} 18. Rad1 {[%clk 0:02:14]}  Bc6 {[%clk 0:01:40]} 19. Qb4 {[%clk 0:02:04]}  Bxb5 {[%clk 0:01:26]} 20. cxb5 {[%clk 0:02:03]}  Qc5+ {[%clk 0:01:24]} 21. Kh1 {[%clk 0:02:02]}  Rc8 {[%clk 0:01:16]} 22. Qa4 {[%clk 0:01:34]}  Qc7 {[%clk 0:00:57]} 23. f4 {[%clk 0:01:33]}  Nc4 {[%clk 0:00:54]} 24. Rd4 {[%clk 0:01:10]}  Nb2 {[%clk 0:00:47]} 25. Qb4 {[%clk 0:01:03]}  Qxc3 {[%clk 0:00:40]} 26. Rb1 {[%clk 0:01:02]}  Qc1+ {[%clk 0:00:28]} 27. Rxc1 {[%clk 0:00:59]}  Rxc1+ {[%clk 0:00:29]} 28. Bd1 {[%clk 0:00:59]}  Nxd1 {[%clk 0:00:29]} 29. Kg1 {[%clk 0:00:47]}  Nc5 {[%clk 0:00:13]} 30. f5 {[%clk 0:00:44]}  gxf5 {[%clk 0:00:10]} 31. Bxc1 {[%clk 0:00:43]} 1-0


[Site "https://www.chess.com"]